fUSD/lending_fUSD_20240617
["ID","MTS","AMOUNT","RATE_DAILY","PERIOD"]
[329706106,1718591467048,-500.0,0.00027397,8]
[329706107,1718591467060,-500.9277051,0.00027397,8]
[329706108,1718591467077,-500.0,0.00027397,8]
[329706109,1718591467090,-500.0,0.00027397,8]
[329706110,1718591467103,-226.46886185,0.00027397,8]
[329706111,1718591467119,-500.0,0.00027397,8]
[329706112,1718591467138,-500.0,0.00027397,8]
[329706113,1718591467154,-500.0,0.00027397,8]
[329706114,1718591467171,-500.0,0.00027397,8]
[329706115,1718591467187,-500.0,0.00027397,8]
[329706116,1718591467204,-500.0,0.00027397,8]
[329706117,1718591467217,-521.99428865,0.00027397,8]
[329706118,1718591467233,-500.0,0.00027397,8]
[329706119,1718591467249,-500.0,0.00027397,8]
[329706120,1718591467264,-152.691288,0.00027397,7]
[329706121,1718591467278,-508.78609109,0.00027397,8]
[329706122,1718591467290,-507.3378025,0.00027397,8]
[329706123,1718591467305,-500.0,0.00027397,8]
[329706124,1718591467318,-500.0,0.00027397,8]
[329706125,1718591467330,-500.0,0.00027397,8]
[329706126,1718591467345,-500.0,0.00027397,8]
[329706127,1718591467357,-500.0,0.00027397,8]
[329706128,1718591467369,-290.98033234,0.00027397,8]
[329706129,1718591467380,-503.64350187,0.00027397,8]
[329706130,1718591467392,-503.25168999,0.00027397,8]
[329706131,1718591467404,-500.0,0.00027397,8]
[329706132,1718591467454,-500.56475038,0.00027397,8]
[329706133,1718591467469,-500.0,0.00027397,8]
[329706134,1718591467487,-500.0,0.00027397,8]
[329706135,1718591467505,-500.0,0.00027397,8]
[329706136,1718591467524,-500.0,0.00027397,8]
[329706137,1718591467536,-500.0,0.00027397,8]
[329706138,1718591467551,-503.67133341,0.00027397,8]
[329706139,1718591467563,-500.0,0.00027397,8]
[329706140,1718591467575,-514.99813331,0.00027397,8]
[329706141,1718591467591,-500.0,0.00027397,8]
[329706142,1718591467604,-500.0,0.00027397,8]
[329706143,1718591467617,-500.0,0.00027397,8]
[329706144,1718591467630,-503.98067572,0.00027397,8]
[329706145,1718591467641,-500.0,0.00027397,8]
[329706146,1718591467671,-458.37494889,0.00027397,8]
[329706147,1718591467682,-509.79145757,0.00027397,8]
[329706148,1718591467693,-501.54246511,0.00027397,8]
[329706149,1718591467707,-512.19564478,0.00027397,2]
[329706150,1718591467724,-505.11583649,0.00027397,8]
[329706151,1718591467743,-504.88759046,0.00027397,8]
[329706152,1718591467755,-500.0,0.00027397,8]
[329706153,1718591467776,-500.0,0.00027397,8]
[329706154,1718591467788,-500.0,0.00027397,8]
[329706155,1718591467799,-500.0,0.00027397,8]
[329706156,1718591467811,-512.25626444,0.00027397,8]
[329706157,1718591467825,-504.71607855,0.00027397,8]
[329706158,1718591467837,-502.46844686,0.00027397,8]
[329706159,1718591467857,-243.66071015,0.00027397,8]
[329706160,1718591467867,-500.8478605,0.00027397,8]
[329706161,1718591467878,-516.25880588,0.00027397,8]
[329706162,1718591467897,-505.42997302,0.00027397,8]
[329706163,1718591467924,-500.0,0.00027397,8]
[329706164,1718591467935,-500.0,0.00027397,8]
[329706165,1718591467946,-500.0,0.00027397,8]
[329706166,1718591467957,-524.19683372,0.00027397,8]
[329706167,1718591467968,-500.0,0.00027397,8]
[329706168,1718591467986,-500.0,0.00027397,8]
[329706169,1718591468001,-500.0,0.00027397,8]
[329706170,1718591468012,-166.92568653,0.00027397,8]
[329706171,1718591468028,-500.0,0.00027397,8]
[329706172,1718591468069,-500.0,0.00027397,8]
[329706173,1718591468085,-500.0,0.00027397,8]
[329706174,1718591468102,-500.0,0.00027397,8]
[329706175,1718591468114,-501.50588046,0.00027397,8]
[329706176,1718591468185,-500.0,0.00027397,8]
[329706177,1718591468220,-500.0,0.00027397,8]
[329706178,1718591468239,-500.0,0.00027397,8]
[329706179,1718591468251,-157.71077344,0.00027397,8]
[329706180,1718591468276,-150.0,0.00027397,2]
[329706181,1718591468290,-500.0,0.00027397,8]
[329706182,1718591468311,-500.0,0.00027397,8]
[329706183,1718591468329,-500.0,0.00027397,8]
[329706184,1718591468350,-500.0,0.00027397,8]
[329706185,1718591468362,-273.52673819,0.00027397,8]
[329706186,1718591468388,-500.0,0.00027397,8]
[329706187,1718591468411,-1001.14319162,0.00027397,8]
[329706188,1718591468422,-526.06838757,0.00027397,8]
[329706189,1718591468434,-507.27773823,0.00027397,8]
[329706190,1718591468447,-500.0,0.00027397,8]
[329706191,1718591468460,-500.0,0.00027397,8]
[329706192,1718591468472,-500.0,0.00027397,8]
[329706193,1718591468488,-500.0,0.00027397,8]
[329706194,1718591468507,-502.64856806,0.00027397,8]
[329706195,1718591468519,-500.0,0.00027397,8]
[329706196,1718591468530,-500.0,0.00027397,8]
[329706197,1718591468541,-500.0,0.00027397,8]
[329706198,1718591468554,-500.0,0.00027397,8]
[329706199,1718591468565,-500.0,0.00027397,8]
[329706200,1718591468579,-200.0,0.00027397,7]
[329706201,1718591468591,-500.0,0.00027397,8]
[329706202,1718591468606,-500.0,0.00027397,8]
[329706203,1718591468623,-500.0,0.00027397,8]
[329706204,1718591468635,-200.0,0.00027397,7]
[329706205,1718591468658,-500.0,0.00027397,8]
[329706206,1718591468674,-500.0,0.00027397,8]
[329706207,1718591468686,-200.0,0.00027397,7]
[329706208,1718591468698,-500.0,0.00027397,8]
[329706209,1718591468711,-500.0,0.00027397,8]
[329706210,1718591468741,-500.0,0.00027397,8]
[329706211,1718591468757,-200.0,0.00027397,7]
[329706212,1718591468770,-500.0,0.00027397,8]
[329706213,1718591468784,-500.0,0.00027397,8]
[329706214,1718591468806,-548.43153051,0.00027397,8]
[329706215,1718591468821,-500.0,0.00027397,8]
[329706216,1718591468833,-201.76272652,0.00027397,7]
[329706217,1718591468847,-512.33613259,0.00027397,8]
[329706218,1718591468859,-629.19263051,0.00027397,8]
[329706219,1718591468876,-523.06939683,0.00027397,8]
[329706220,1718591468888,-500.0,0.00027397,8]
[329706221,1718591468908,-500.0,0.00027397,8]
[329706222,1718591468921,-504.54205098,0.00027397,8]
[329706223,1718591468939,-502.22638872,0.00027397,8]
[329706224,1718591468950,-500.0,0.00027397,8]
[329706225,1718591468962,-288.16650746,0.00027397,8]
[329706226,1718591468973,-500.0,0.00027397,8]
[329706227,1718591468992,-586.47311541,0.00027397,8]
[329706228,1718591469006,-500.0,0.00027397,8]
[329706229,1718591469024,-500.0,0.00027397,8]
[329706230,1718591469042,-520.80641787,0.00027397,8]
[329706231,1718591469066,-504.36576992,0.00027397,8]
[329706232,1718591469085,-500.0,0.00027397,8]
[329706233,1718591469100,-500.0,0.00027397,8]
[329706234,1718591469115,-483.6077887,0.00027397,8]
[329706235,1718591469128,-500.0,0.00027397,8]
[329706236,1718591469144,-512.6781352,0.00027397,8]
[329706237,1718591469155,-500.0,0.00027397,8]
[329706238,1718591469174,-510.24279822,0.00027397,8]
[329706239,1718591469187,-500.0,0.00027397,8]
[329706240,1718591469199,-568.94740993,0.00027397,8]
[329706241,1718591469218,-500.0,0.00027397,8]
[329706242,1718591469234,-507.74381998,0.00027397,8]
[329706243,1718591469260,-500.0,0.00027397,8]
[329706244,1718591469275,-500.0,0.00027397,8]
[329706245,1718591469289,-500.0,0.00027397,8]
[329706246,1718591469303,-501.118505,0.00027397,8]
[329706247,1718591469328,-500.0,0.00027397,8]
[329706248,1718591469341,-500.0,0.00027397,8]
[329706249,1718591469353,-500.0,0.00027397,8]
[329706250,1718591469383,-223.53320809,0.00027397,8]
[329706251,1718591469574,-500.83137418,0.00027397,8]
[329706252,1718591469585,-500.0,0.00027397,8]
[329706253,1718591469620,-506.76390431,0.00027397,8]
[329706254,1718591469631,-509.53890042,0.00027397,8]
[329706255,1718591469642,-505.64932895,0.00027397,8]
[329706256,1718591469660,-511.74686184,0.00027397,8]
[329706257,1718591469672,-509.19468503,0.00027397,8]
[329706258,1718591469684,-500.0,0.00027397,8]
[329706259,1718591469695,-500.0,0.00027397,8]
[329706260,1718591469706,-500.0,0.00027397,8]
[329706261,1718591469719,-500.0,0.00027397,8]
[329706262,1718591469753,-500.0,0.00027397,8]
[329706263,1718591469766,-500.0,0.00027397,8]
[329706264,1718591469778,-500.0,0.00027397,8]
[329706265,1718591469813,-500.0,0.00027397,8]
[329706266,1718591469835,-245.85408333,0.00027397,8]
[329706267,1718591469863,-508.23355323,0.00027397,8]
[329706268,1718591469875,-523.11401556,0.00027397,8]
[329706269,1718591469889,-500.0,0.00027397,8]
[329706270,1718591469904,-500.0,0.00027397,8]
[329706271,1718591469917,-500.0,0.00027397,8]
[329706272,1718591469928,-500.0,0.00027397,8]
[329706273,1718591469940,-603.90013183,0.00027397,8]
[329706274,1718591469968,-506.73479806,0.00027397,8]
[329706275,1718591469992,-500.0,0.00027397,8]
[329706276,1718591470003,-500.0,0.00027397,8]
[329706277,1718591470020,-500.0,0.00027397,8]
[329706278,1718591470049,-500.0,0.00027397,8]
[329706279,1718591470067,-500.0,0.00027397,8]
[329706280,1718591470082,-501.84955143,0.00027397,8]
[329706281,1718591470098,-500.0,0.00027397,8]
[329706282,1718591470109,-500.0,0.00027397,8]
[329706283,1718591470124,-393.81984329,0.00027397,8]
[329706284,1718591470135,-500.0,0.00027397,8]
[329706285,1718591470147,-500.0,0.00027397,8]
[329706286,1718591470158,-514.17497542,0.00027397,8]
[329706287,1718591470171,-500.0,0.00027397,8]
[329706288,1718591470182,-500.0,0.00027397,8]
[329706289,1718591470193,-500.0,0.00027397,8]
[329706290,1718591470205,-587.9791501,0.00027397,8]
[329706291,1718591470219,-504.1829712,0.00027397,8]
[329706292,1718591470239,-500.0,0.00027397,8]
[329706293,1718591470257,-500.0,0.00027397,8]
[329706294,1718591470270,-500.0,0.00027397,8]
[329706295,1718591470282,-502.38011106,0.00027397,8]
[329706296,1718591470293,-515.07680292,0.00027397,8]
[329706297,1718591470305,-500.0,0.00027397,8]
[329706298,1718591470316,-504.26021196,0.00027397,8]
[329706299,1718591470330,-500.0,0.00027397,8]
[329706300,1718591470341,-525.972776,0.00027397,8]
[329706301,1718591470356,-505.31628348,0.00027397,8]
[329706302,1718591470367,-500.0,0.00027397,8]
[329706303,1718591470381,-504.75184979,0.00027397,8]
[329706304,1718591470397,-501.8057075,0.00027397,8]
[329706305,1718591470408,-500.0,0.00027397,8]
[329706306,1718591470426,-500.0,0.00027397,8]
[329706307,1718591470437,-541.63421439,0.00027397,8]
[329706308,1718591470449,-504.03242585,0.00027397,8]
[329706309,1718591470461,-513.33290336,0.00027397,8]
[329706310,1718591470475,-503.19304456,0.00027397,8]
[329706311,1718591470499,-500.0,0.00027397,8]
[329706312,1718591470545,-500.0,0.00027397,8]
[329706313,1718591470558,-507.8031167,0.00027397,8]
[329706314,1718591470569,-504.9818259,0.00027397,8]
[329706315,1718591470582,-502.01243679,0.00027397,8]
[329706316,1718591470594,-503.0436603,0.00027397,8]
[329706317,1718591470623,-501.97682613,0.00027397,8]
[329706318,1718591470654,-500.0,0.00027397,8]
[329706319,1718591470677,-503.41624048,0.00027397,8]
[329706320,1718591470709,-500.0,0.00027397,8]
[329706321,1718591470735,-500.0,0.00027397,8]
[329706322,1718591470759,-500.0,0.00027397,8]
[329706323,1718591470771,-500.0,0.00027397,8]
[329706324,1718591470794,-500.0,0.00027397,8]
[329706325,1718591470806,-500.0,0.00027397,8]
[329706326,1718591470820,-500.0,0.00027397,8]
[329706327,1718591470831,-155.40101713,0.00027397,8]
[329706328,1718591470848,-500.0,0.00027397,8]
[329706329,1718591470859,-500.0,0.00027397,8]
[329706330,1718591470873,-500.0,0.00027397,8]
[329706331,1718591470887,-500.0,0.00027397,8]
[329706332,1718591470899,-501.21708152,0.00027397,8]
[329706333,1718591470910,-501.08060118,0.00027397,8]
[329706334,1718591470920,-500.0,0.00027397,8]
[329706335,1718591470931,-507.58374988,0.00027397,8]
[329706336,1718591470987,-172.22042586,0.00027397,8]
[329706337,1718591471004,-506.84298034,0.00027397,8]
[329706338,1718591471037,-500.0,0.00027397,8]
[329706339,1718591471078,-500.0,0.00027397,8]
[329706340,1718591471093,-500.0,0.00027397,8]
[329706341,1718591471109,-500.0,0.00027397,8]
[329706342,1718591471139,-500.0,0.00027397,8]
[329706343,1718591471158,-500.0,0.00027397,8]
[329706344,1718591471171,-507.84938809,0.00027397,8]
[329706345,1718591471193,-500.0,0.00027397,8]
[329706346,1718591471205,-500.0,0.00027397,8]
[329706347,1718591471235,-500.0,0.00027397,8]
[329706348,1718591471249,-500.0,0.00027397,8]
[329706349,1718591471262,-500.0,0.00027397,8]
[329706350,1718591471283,-500.0,0.00027397,8]
[329706351,1718591471305,-517.57315304,0.00027397,8]
[329706352,1718591471335,-500.0,0.00027397,8]
[329706353,1718591471346,-500.0,0.00027397,8]
[329706354,1718591471357,-500.0,0.00027397,8]
[329706355,1718591471373,-512.75830417,0.00027397,8]
[329706356,1718591471384,-508.55505374,0.00027397,8]
[329706357,1718591471412,-429.78203722,0.00027397,8]
[329706358,1718591471424,-505.15337143,0.00027397,8]
[329706359,1718591471445,-500.0,0.00027397,8]
[329706360,1718591471460,-506.67645808,0.00027397,8]
[329706361,1718591471471,-500.0,0.00027397,8]
[329706362,1718591471494,-500.0,0.00027397,8]
[329706363,1718591471505,-500.0,0.00027397,8]
[329706364,1718591471516,-500.0,0.00027397,8]
[329706365,1718591471527,-500.0,0.00027397,8]
[329706366,1718591471538,-506.21751292,0.00027397,8]
[329706367,1718591471555,-500.0,0.00027397,8]
[329706368,1718591471572,-503.54270408,0.00027397,8]
[329706369,1718591471583,-481.92186302,0.00027397,8]
[329706370,1718591471596,-500.83419934,0.00027397,8]
[329706371,1718591471608,-374.97062265,0.00027397,8]
[329706372,1718591471619,-174.3477626,0.00027397,8]
[329706373,1718591471645,-504.19170214,0.00027397,8]
[329706374,1718591471677,-500.0,0.00027397,8]
[329706375,1718591471691,-500.0,0.00027397,8]
[329706376,1718591471712,-500.0,0.00027397,8]
[329706377,1718591471734,-444.92008081,0.00027397,8]
[329706378,1718591471754,-500.0,0.00027397,8]
[329706379,1718591471772,-500.0,0.00027397,8]
[329706380,1718591471793,-500.0,0.00027397,8]
[329706381,1718591471807,-500.0,0.00027397,8]
[329706382,1718591471822,-500.0,0.00027397,8]
[329706383,1718591471837,-500.0,0.00027397,8]
[329706384,1718591471852,-516.86108083,0.00027397,8]
[329706385,1718591471863,-542.78670421,0.00027397,8]
[329706386,1718591471878,-500.0,0.00027397,8]
[329706387,1718591471889,-500.0,0.00027397,8]
[329706388,1718591471900,-500.0,0.00027397,8]
[329706389,1718591471913,-634.76568882,0.00027397,8]
[329706390,1718591471925,-483.96543709,0.00027397,8]
[329706391,1718591471935,-500.0,0.00027397,8]
[329706392,1718591471947,-500.0,0.00027397,8]
[329706393,1718591471957,-500.0,0.00027397,8]
[329706394,1718591471969,-514.17868923,0.00027397,8]
[329706395,1718591471986,-500.0,0.00027397,8]
[329706396,1718591472004,-500.0,0.00027397,8]
[329706397,1718591472015,-500.0,0.00027397,8]
[329706398,1718591472028,-500.0,0.00027397,8]
[329706399,1718591472039,-500.0,0.00027397,8]
[329706400,1718591472049,-500.0,0.00027397,8]
[329706401,1718591472060,-592.53130896,0.00027397,8]
[329706402,1718591472070,-500.0,0.00027397,8]
[329706403,1718591472081,-500.0,0.00027397,8]
[329706404,1718591472113,-500.0,0.00027397,8]
[329706405,1718591472124,-241.89064017,0.00027397,8]
[329706406,1718591472135,-500.0,0.00027397,8]
[329706407,1718591472146,-500.0,0.00027397,8]
[329706408,1718591472158,-500.0,0.00027397,8]
[329706409,1718591472169,-542.75753666,0.00027397,8]
[329706410,1718591472185,-500.0,0.00027397,8]
[329706411,1718591472197,-500.0,0.00027397,8]
[329706412,1718591472210,-172.8888238,0.00027397,8]
[329706413,1718591472225,-268.49518981,0.00027397,8]
[329706414,1718591472245,-505.94150837,0.00027397,8]
[329706415,1718591472258,-500.0,0.00027397,8]
[329706416,1718591472273,-500.0,0.00027397,8]
[329706417,1718591472283,-500.0,0.00027397,8]
[329706418,1718591472296,-393.36,0.00027397,8]
[329706419,1718591472307,-507.81067831,0.00027397,8]
[329706420,1718591472322,-606.33,0.00027397,8]
[329706421,1718591472333,-606.33,0.00027397,8]
[329706422,1718591472344,-606.33,0.00027397,8]
[329706423,1718591472384,-500.0,0.00027397,8]
[329706424,1718591472395,-509.58808221,0.00027397,8]
[329706425,1718591472406,-500.0,0.00027397,8]
[329706426,1718591472437,-606.33,0.00027397,8]
[329706427,1718591472467,-500.0,0.00027397,8]
[329706428,1718591472486,-500.0,0.00027397,8]
[329706429,1718591472498,-500.0,0.00027397,8]
[329706430,1718591472513,-500.0,0.00027397,8]
[329706431,1718591472523,-500.0,0.00027397,8]
[329706432,1718591472535,-505.06281217,0.00027397,8]
[329706433,1718591472547,-606.33,0.00027397,8]
[329706434,1718591472557,-500.0,0.00027397,8]
[329706435,1718591472570,-500.0,0.00027397,8]
[329706436,1718591472581,-500.0,0.00027397,8]
[329706437,1718591472592,-606.33,0.00027397,8]
[329706438,1718591472606,-500.0,0.00027397,8]
[329706439,1718591472618,-500.0,0.00027397,8]
[329706440,1718591472628,-500.0,0.00027397,8]
[329706441,1718591472642,-500.0,0.00027397,8]
[329706442,1718591472655,-606.33,0.00027397,8]
[329706443,1718591472709,-500.0,0.00027397,8]
[329706444,1718591472721,-500.0,0.00027397,8]
[329706445,1718591472739,-606.33,0.00027397,8]
[329706446,1718591472750,-500.0,0.00027397,8]
[329706447,1718591472761,-500.0,0.00027397,8]
[329706448,1718591472772,-500.0,0.00027397,8]
[329706449,1718591472788,-606.33,0.00027397,8]
[329706450,1718591472799,-500.0,0.00027397,8]
[329706451,1718591472829,-500.0,0.00027397,8]
[329706452,1718591472862,-179.14126732,0.00027397,8]
[329706453,1718591472884,-606.33,0.00027397,8]
[329706454,1718591472897,-500.0,0.00027397,8]
[329706455,1718591472938,-500.0,0.00027397,8]
[329706456,1718591472953,-606.33,0.00027397,8]
[329706457,1718591472990,-500.0,0.00027397,8]
[329706458,1718591473023,-500.0,0.00027397,8]
[329706459,1718591473059,-606.33,0.00027397,8]
[329706460,1718591473074,-500.0,0.00027397,8]
[329706461,1718591473092,-504.96836166,0.00027397,8]
[329706462,1718591473106,-606.33,0.00027397,8]
[329706463,1718591473119,-500.0,0.00027397,8]
[329706464,1718591473142,-500.0,0.00027397,8]
[329706465,1718591473155,-606.33,0.00027397,8]
[329706466,1718591473168,-518.76333987,0.00027397,8]
[329706467,1718591473182,-229.0453775,0.00027397,8]
[329706468,1718591473203,-606.33,0.00027397,8]
[329706469,1718591473213,-500.0,0.00027397,8]
[329706470,1718591473226,-606.33,0.00027397,8]
[329706471,1718591473242,-500.0,0.00027397,8]
[329706472,1718591473253,-606.33,0.00027397,8]
[329706473,1718591473264,-500.0,0.00027397,8]
[329706474,1718591473275,-606.33,0.00027397,8]
[329706475,1718591473287,-510.42165239,0.00027397,8]
[329706476,1718591473307,-500.0,0.00027397,8]
[329706477,1718591473346,-606.33,0.00027397,8]
[329706478,1718591473359,-500.0,0.00027397,8]
[329706479,1718591473370,-500.0,0.00027397,8]
[329706480,1718591473381,-606.33,0.00027397,8]
[329706481,1718591473392,-500.0,0.00027397,8]
[329706482,1718591473402,-606.33,0.00027397,8]
[329706483,1718591473414,-500.0,0.00027397,8]
[329706484,1718591473445,-500.0,0.00027397,8]
[329706485,1718591473463,-606.33,0.00027397,8]
[329706486,1718591473498,-500.0,0.00027397,8]
[329706487,1718591473533,-500.0,0.00027397,8]
[329706488,1718591473546,-500.0,0.00027397,8]
[329706489,1718591473562,-500.0,0.00027397,8]
[329706490,1718591473574,-606.33,0.00027397,8]
[329706491,1718591473586,-500.0,0.00027397,8]
[329706492,1718591473608,-606.540597,0.00027397,8]
[329706493,1718591473623,-500.0,0.00027397,8]
[329706494,1718591473641,-500.0,0.00027397,8]
[329706495,1718591473652,-500.0,0.00027397,8]
[329706496,1718591473666,-500.0,0.00027397,8]
[329706497,1718591473682,-500.0,0.00027397,8]
[329706498,1718591473695,-500.0,0.00027397,8]
[329706499,1718591473706,-500.0,0.00027397,8]
[329706500,1718591473722,-500.0,0.00027397,8]
[329706501,1718591473738,-500.0,0.00027397,8]
[329706502,1718591473751,-500.0,0.00027397,8]
[329706503,1718591473764,-500.0,0.00027397,8]
[329706504,1718591473776,-500.0,0.00027397,8]
[329706505,1718591473789,-500.0,0.00027397,8]
[329706506,1718591473805,-500.0,0.00027397,8]
[329706507,1718591473823,-500.0,0.00027397,8]
[329706508,1718591473849,-500.0,0.00027397,8]
[329706509,1718591473866,-500.0,0.00027397,8]
[329706510,1718591473891,-500.0,0.00027397,8]
[329706511,1718591473905,-506.58624643,0.00027397,8]
[329706512,1718591473931,-500.0,0.00027397,8]
[329706513,1718591473947,-500.0,0.00027397,8]
[329706514,1718591473971,-500.0,0.00027397,8]
[329706515,1718591474008,-500.0,0.00027397,8]
[329706516,1718591474042,-500.0,0.00027397,8]
[329706517,1718591474062,-396.98088662,0.00027397,8]
[329706518,1718591474091,-500.0,0.00027397,8]
[329706519,1718591474111,-500.0,0.00027397,8]
[329706520,1718591474126,-500.0,0.00027397,8]
[329706521,1718591474147,-500.0,0.00027397,8]
[329706522,1718591474168,-500.0,0.00027397,8]
[329706523,1718591474183,-500.0,0.00027397,8]
[329706524,1718591474194,-500.0,0.00027397,8]
[329706525,1718591474206,-500.0,0.00027397,8]
[329706526,1718591474222,-504.4160775,0.00027397,8]
[329706527,1718591474247,-500.0,0.00027397,8]
[329706528,1718591474268,-500.0,0.00027397,8]
[329706529,1718591474281,-500.0,0.00027397,8]
[329706530,1718591474313,-500.0,0.00027397,8]
[329706531,1718591474333,-500.0,0.00027397,8]
[329706532,1718591474351,-412.44269164,0.00027397,8]
[329706533,1718591474366,-500.0,0.00027397,8]
[329706534,1718591474389,-500.0,0.00027397,8]
[329706535,1718591474415,-586.61497123,0.00027397,8]
[329706536,1718591474430,-500.0,0.00027397,8]
[329706537,1718591474442,-500.0,0.00027397,8]
[329706538,1718591474453,-500.0,0.00027397,8]
[329706539,1718591474466,-497.81740748,0.00027397,8]
[329706540,1718591474489,-500.0,0.00027397,8]
[329706541,1718591474525,-500.0,0.00027397,8]
[329706542,1718591474535,-535.02212556,0.00027397,8]
[329706543,1718591474546,-500.0,0.00027397,8]
[329706544,1718591474561,-500.0,0.00027397,8]
[329706545,1718591474575,-500.0,0.00027397,8]
[329706546,1718591474586,-500.0,0.00027397,8]
[329706547,1718591474603,-500.0,0.00027397,8]
[329706548,1718591474620,-500.0,0.00027397,8]
[329706549,1718591474631,-555.37339325,0.00027397,8]
[329706550,1718591474641,-500.0,0.00027397,8]
[329706551,1718591474656,-500.0,0.00027397,8]
[329706552,1718591474668,-500.0,0.00027397,8]
[329706553,1718591474679,-500.0,0.00027397,8]
[329706554,1718591474692,-467.89420344,0.00027397,8]
[329706555,1718591474703,-500.0,0.00027397,8]
[329706556,1718591474714,-500.0,0.00027397,8]
[329706557,1718591474744,-289.78091523,0.00027397,8]
[329706558,1718591474755,-502.34160066,0.00027397,8]
[329706559,1718591474766,-500.0,0.00027397,8]
[329706560,1718591474779,-500.0,0.00027397,8]
[329706561,1718591474803,-500.0,0.00027397,8]
[329706562,1718591474822,-500.0,0.00027397,8]
[329706563,1718591474844,-500.0,0.00027397,8]
[329706564,1718591474873,-500.0,0.00027397,8]
[329706565,1718591474888,-520.47023583,0.00027397,8]
[329706566,1718591474900,-500.0,0.00027397,8]
[329706567,1718591474912,-500.0,0.00027397,8]
[329706568,1718591474923,-500.0,0.00027397,8]
[329706569,1718591474937,-154.255923,0.00027397,7]
[329706570,1718591474964,-500.0,0.00027397,8]
[329706571,1718591474975,-500.0,0.00027397,8]
[329706572,1718591474988,-523.70030356,0.00027397,8]
[329706573,1718591475007,-1500.0,0.00027397,8]
[329706574,1718591475022,-500.0,0.00027397,8]
[329706575,1718591475048,-320.0627982,0.00027397,8]
[329706576,1718591475064,-618.82616955,0.00027397,8]
[329706577,1718591475078,-500.0,0.00027397,8]
[329706578,1718591475098,-500.44616942,0.00027397,8]
[329706579,1718591475111,-500.0,0.00027397,8]
[329706580,1718591475125,-159.174461,0.00027397,7]
[329706581,1718591475137,-500.0,0.00027397,8]
[329706582,1718591475148,-408.13689811,0.00027397,8]
[329706583,1718591475166,-500.0,0.00027397,8]
[329706584,1718591475339,-500.0,0.00027397,8]
[329706585,1718591475366,-500.0,0.00027397,8]
[329706586,1718591475380,-500.0,0.00027397,8]
[329706587,1718591475396,-500.0,0.00027397,8]
[329706588,1718591475408,-500.0,0.00027397,8]
[329706589,1718591475431,-500.0,0.00027397,8]
[329706590,1718591475444,-500.0,0.00027397,8]
[329706591,1718591475459,-607.13808851,0.00027397,8]
[329706592,1718591475472,-512.32484195,0.00027397,8]
[329706593,1718591475494,-500.0,0.00027397,8]
[329706594,1718591475509,-500.0,0.00027397,8]
[329706595,1718591475523,-439.75962412,0.00027397,8]
[329706596,1718591475535,-500.0,0.00027397,8]
[329706597,1718591475555,-522.37965361,0.00027397,8]
[329706598,1718591475568,-500.0,0.00027397,8]
[329706599,1718591475581,-500.0,0.00027397,8]
[329706600,1718591475593,-500.0,0.00027397,8]
[329706601,1718591475605,-500.0,0.00027397,8]
[329706602,1718591475617,-500.0,0.00027397,8]
[329706603,1718591475633,-500.0,0.00027397,8]
[329706604,1718591475644,-500.0,0.00027397,8]
[329706605,1718591475657,-500.0,0.00027397,8]